[Event "GER-chT Youth Countries 2018"]
[Site "Wurzburg"]
[Date "2018.10.05"]
[Round "5"]
[White "Kageler, Anton Paul"]
[Black "Haenselmann, Hendrik"]
[Result "0-1"]
[ECO "B48"]
[WhiteElo "1459"]
[BlackElo "1660"]
[Annotator "NA"]
[PlyCount "96"]
[EventDate "2018.10.03"]
[EventType "team-tourn"]
[EventCountry "GER"]
[SourceTitle "playchess.com"]
[Source "ChessBase"]
[SourceQuality "1"]
[TimeControl "40/5400+30:1800+30"]

1. e4 {[%emt 0:00:00]} c5 {[%emt 0:00:00]} 2. Nf3 {[%emt 0:00:00]} e6 {[%emt 0:00:00]} 3. d4 {[%emt 0:00:00]} cxd4 {[%emt 0:00:00]} 4. Nxd4 {[%emt 0:00:00]} Nc6 {[%emt 0:00:00]} 5. Be3 {[%emt 0:00:26]} Qc7 {[%emt 0:00:12]} 6. Nc3 {[%emt 0:00:52]} a6 {[%emt 0:01:11]} 7. Bd3 {[%emt 0:00:35]} Nf6 {[%emt 0:01:14]} 8. O-O {[%emt 0:00:43]} Nxd4 {[%emt 0:04:07]} 9. Bxd4 {[%emt 0:00:17]} e5 {[%emt 0:01:43]} 10. Be3 {[%emt 0:01:16]} Bb4 {[%emt 0:02:01]} 11. Nd5 {[%emt 0:02:58]} Nxd5 {[%emt 0:00:21]} 12. exd5 {[%emt 0:00:06]} O-O {[%emt 0:00:34]} 13. Qh5 {[%emt 0:07:29]} g6 {[%emt 0:00:37]} 14. Qh4 {[%emt 0:00:53]} Qd6 {[%emt 0:02:04]} 15. c4 {[%emt 0:02:09]} b6 {[%emt 0:03:59]} 16. Kh1 {[%emt 0:10:26]} f5 {[%emt 0:05:21]} 17. f4 {[%emt 0:03:33]} e4 {[%emt 0:02:26]} 18. Be2 {[%emt 0:04:14]} Bc5 {[%emt 0:05:22]} 19. Bd2 {[%emt 0:01:56]} Bd4 {[%emt 0:03:03]} 20. a3 {[%emt 0:07:00]} Bxb2 {[%emt 0:07:14]} 21. Bb4 {[%emt 0:02:07]} Qf6 {[%emt 0:00:33]} 22. Qh6 {[%emt 0:01:58]} Bxa1 {[%emt 0:01:22]} 23. Qxf8+ {[%emt 0:02:30]} Qxf8 {[%emt 0:00:07]} 24. Bxf8 {[%emt 0:00:07]} Kxf8 {[%emt 0:00:37]} 25. Rxa1 {[%emt 0:00:06]} d6 {[%emt 0:00:24]} 26. Rb1 {[%emt 0:02:58]} Rb8 {[%emt 0:00:22]} 27. a4 {[%emt 0:00:45]} a5 {[%emt 0:03:27]} 28. Kg1 {[%emt 0:06:10]} Bd7 {[%emt 0:00:58]} 29. Bd1 {[%emt 0:00:27]} h6 {[%emt 0:00:31]} 30. Kf2 {[%emt 0:01:58]} g5 {[%emt 0:01:02]} 31. fxg5 {[%emt 0:02:11]} hxg5 {[%emt 0:00:06]} 32. Bc2 {[%emt 0:05:26]} g4 {[%emt 0:05:27]} 33. h3 {[%emt 0:07:37]} gxh3 {[%emt 0:01:12]} 34. gxh3 {[%emt 0:00:51]} Kg7 {[%emt 0:01:08]} 35. Kg3 {[%emt 0:01:40]} Kf6 {[%emt 0:05:30]} 36. Kf4 {[%emt 0:01:19]} Be8 {[%emt 0:02:00]} 37. Rg1 {[%emt 0:01:22]} Bg6 {[%emt 0:03:37]} 38. Bd1 {[%emt 0:03:21]} Rh8 {[%emt 0:01:25]} 39. Rg3 {[%emt 0:00:38]} Rh4+ {[%emt 0:00:48]} 40. Bg4 {[%emt 0:02:34]} fxg4 {[%emt 0:00:28]} 41. hxg4 {[%emt 0:30:36]} Bf5 {[%emt 0:32:21]} 42. Rg2 {[%emt 0:01:43]} Rxg4+ {[%emt 0:00:33]} 43. Rxg4 {[%emt 0:00:29]} Bxg4 {[%emt 0:00:04]} 44. Kxg4 {[%emt 0:00:07]} Ke5 {[%emt 0:00:05]} 45. Kg3 {[%emt 0:00:42]} Kd4 {[%emt 0:00:08]} 46. Kf2 {[%emt 0:00:34]} Kd3 {[%emt 0:00:17]} 47. Ke1 {[%emt 0:00:13]} Ke3 {[%emt 0:00:09]} 48. c5 {[%emt 0:01:09]} bxc5 {[%emt 0:00:10]} 0-1

[Event "GER-chT Youth Countries 2018"]
[Site "Wurzburg"]
[Date "2018.10.05"]
[Round "5"]
[White "Fischer, Darja"]
[Black "Moeller, Lisa-Marie"]
[Result "0-1"]
[ECO "B43"]
[WhiteElo "1456"]
[BlackElo "1868"]
[Annotator "NA RC"]
[PlyCount "148"]
[EventDate "2018.10.03"]
[EventType "team-tourn"]
[EventCountry "GER"]
[SourceTitle "playchess.com"]
[Source "ChessBase"]
[SourceQuality "1"]
[TimeControl "40/5400+30:1800+30"]

1. e4 {[%emt 0:00:00]} c5 {[%emt 0:00:00]} 2. Nf3 {[%emt 0:00:00]} e6 {[%emt 0:00:00]} 3. d4 {[%emt 0:00:00]} cxd4 {[%emt 0:00:00]} 4. Nxd4 {[%emt 0:00:05]} a6 {[%emt 0:00:00]} 5. Nc3 {[%emt 0:00:36]} b5 {[%emt 0:00:02]} 6. a3 {[%emt 0:00:48]} Bb7 {[%emt 0:00:42]} 7. Be2 {[%emt 0:03:42]} Qc7 {[%emt 0:01:18]} 8. O-O {[%emt 0:04:07]} Nf6 {[%emt 0:02:11]} 9. Bf3 {[%emt 0:01:55]} d6 {[%emt 0:02:22]} 10. Re1 {[%emt 0:01:22]} Nbd7 {[%emt 0:03:24] B43: Sicilian: Kan Variation: 5 Nc3} 11. Bg5 {[%emt 0:04:38]} (11. g3 Be7 12. Bg2 O-O 13. f4 Rfd8 14. g4 g6 15. g5 Nh5 16. f5 e5 17. Nd5 Bxd5 18. exd5 exd4 19. Rxe7 {0-1 (35) Tadic,S (2240)-Munizaba,S (2426) Valjevo 2018}) 11... Be7 {[%emt 0:02:53]} 12. h3 {[%emt 0:02:05]} O-O {[%emt 0:05:27]} 13. Qd2 {[%emt 0:01:54]} Ne5 {[%emt 0:03:48]} 14. Rad1 {[%emt 0:04:54]} Nc4 $146 {[%emt 0:03:18]} ({Predecessor:} 14... Rac8 15. Bxf6 Bxf6 16. Be2 Rfd8 17. Qe3 h6 18. f4 {0-1 (34) Wagemans,E (1897)-Van den Berg,A (2245) Leiden 2011}) 15. Qc1 {[%emt 0:00:22]} Rab8 {[%emt 0:16:26]} 16. Rd3 {[%emt 0:12:37]} Ba8 {[%emt 0:06:21]} 17. b3 {[%emt 0:06:21]} Ne5 {[%emt 0:04:39]} 18. Rde3 {[%emt 0:00:13]} Rfc8 {[%emt 0:06:59]} 19. Bd1 {[%emt 0:07:31]} b4 {[%emt 0:05:21]} 20. axb4 {[%emt 0:02:43]} Rxb4 {[%emt 0:00:56]} 21. Qd2 $17 {[%emt 0:04:23]} Qc5 {[%emt 0:06:22]} 22. Nf3 {[%emt 0:03:35]} Nxf3+ {[%emt 0:07:14]} 23. Rxf3 {[%emt 0:01:28]} Rb7 {[%emt 0:08:17]} 24. Rd3 {[%emt 0:04:42]} Qb4 {[%emt 0:05:20]} 25. Bf3 {[%emt 0:04:08]} Rbc7 {[%emt 0:01:15]} 26. Ree3 {[%emt 0:00:39]} Kf8 {[%emt 0:02:58]} 27. Kf1 {[%emt 0:00:39]} Bc6 {[%emt 0:02:21]} 28. Nb1 {[%emt 0:01:27]} Qxd2 {[%emt 0:02:40]} 29. Rxd2 {[%emt 0:00:51]} d5 {[%emt 0:01:01]} 30. exd5 {[%emt 0:01:23]} Nxd5 {[%emt 0:00:39]} 31. Bxe7+ {[%emt 0:00:38]} Nxe7 {[%emt 0:00:13]} 32. Red3 {[%emt 0:01:07]} Nf5 {[%emt 0:00:38]} 33. Bxc6 Rxc6 {[%emt 0:00:04]} 34. c4 {[%emt 0:02:13]} Ke7 {[%emt 0:00:48]} 35. Ke2 {[%emt 0:01:01]} Nd6 {[%emt 0:00:42]} 36. Nc3 {[%emt 0:01:33]} Rb8 {[%emt 0:00:41]} 37. Nd1 {[%emt 0:02:49]} Ne4 {[%emt 0:00:28]} 38. Rb2 {[%emt 0:00:32]} Nc5 {[%emt 0:00:23]} 39. Rg3 {[%emt 0:00:45]} g6 {[%emt 0:00:24]} 40. b4 {[%emt 0:02:23]} Ne4 {[%emt 0:00:42]} 41. Rg4 {[%emt 0:30:44]} f5 {[%emt 0:04:28]} 42. Rh4 {[%emt 0:00:00]} h5 {[%emt 0:04:15]} 43. c5 {[%emt 0:00:00]} a5 {[%emt 0:04:06]} 44. f3 {[%emt 0:00:00]} Nf6 {[%emt 0:00:42]} 45. Rc4 {[%emt 0:00:00]} axb4 {[%emt 0:00:43]} 46. Nf2 {[%emt 0:00:00]} Nd5 {[%emt 0:01:53]} 47. Nd3 {[%emt 0:00:00]} Kf6 {[%emt 0:01:10]} 48. g3 {[%emt 0:00:00]} Rb5 {[%emt 0:03:15]} 49. f4 {[%emt 0:00:00]} Kg7 {[%emt 0:02:27]} 50. h4 {[%emt 0:00:00]} Ra5 {[%emt 0:02:14]} 51. Rb3 {[%emt 0:00:00]} Nc3+ {[%emt 0:02:51]} 52. Kf3 {[%emt 0:00:00]} Ne4 {[%emt 0:02:15]} 53. Rc2 {[%emt 0:00:00]} Ra3 {[%emt 0:01:11]} 54. Rxa3 {[%emt 0:00:00]} bxa3 {[%emt 0:00:03]} 55. Kg2 {[%emt 0:00:00]} Ra6 {[%emt 0:02:18]} 56. c6 {[%emt 0:00:00]} a2 {[%emt 0:00:34]} 57. c7 {[%emt 0:00:00]} Nd6 {[%emt 0:00:15]} 58. Nb4 {[%emt 0:00:00]} a1=Q {[%emt 0:00:18]} 59. Nxa6 {[%emt 0:00:00]} Qxa6 {[%emt 0:00:12]} 60. Kf2 {[%emt 0:00:00]} Qc8 {[%emt 0:00:38]} 61. Ke3 {[%emt 0:00:00]} Nb5 {[%emt 0:00:26]} 62. Rc5 {[%emt 0:00:00]} Nxc7 {[%emt 0:00:15]} 63. Kd4 {[%emt 0:00:05]} Kf6 {[%emt 0:01:16]} 64. Kd3 {[%emt 0:00:58]} Qd7+ {[%emt 0:00:00]} 65. Ke3 {[%emt 0:00:40]} Nd5+ {[%emt 0:00:03]} 66. Kf3 {[%emt 0:01:07]} Qa4 {[%emt 0:00:12]} 67. Rc8 {[%emt 0:01:05]} Qd1+ {[%emt 0:01:01]} 68. Kf2 {[%emt 0:00:46]} Qd2+ {[%emt 0:00:06]} 69. Kf3 {[%emt 0:00:58]} Qe3+ {[%emt 0:00:05]} 70. Kg2 {[%emt 0:00:04]} Qe2+ {[%emt 0:00:05]} 71. Kh3 {[%emt 0:00:45]} Ne3 {[%emt 0:00:18]} 72. Rf8+ {[%emt 0:00:45]} Kg7 {[%emt 0:00:12]} 73. Rf7+ {[%emt 0:00:22]} Kxf7 {[%emt 0:00:10]} 74. g4 {[%emt 0:00:04]} Qg2# {[%emt 0:00:07]} 0-1

[Event "GER-chT Youth Countries 2018"]
[Site "Wurzburg"]
[Date "2018.10.05"]
[Round "5"]
[White "Langer, Paul Georg"]
[Black "Butenandt, Svenja"]
[Result "1-0"]
[ECO "B23"]
[WhiteElo "1348"]
[BlackElo "1762"]
[Annotator "NA RC"]
[PlyCount "71"]
[EventDate "2018.10.03"]
[EventType "team-tourn"]
[EventCountry "GER"]
[SourceTitle "playchess.com"]
[Source "ChessBase"]
[SourceQuality "1"]
[TimeControl "40/5400+30:1800+30"]

1. e4 {[%emt 0:00:00]} c5 {[%emt 0:00:00]} 2. Nc3 {[%emt 0:00:00]} Nc6 {[%emt 0:00:00]} 3. Nge2 {[%emt 0:00:00]} e6 {[%emt 0:00:10]} 4. d3 {[%emt 0:00:05]} g6 {[%emt 0:00:27]} 5. g3 {[%emt 0:00:09]} Bg7 {[%emt 0:00:10]} 6. Bg2 {[%emt 0:00:05]} Nge7 {[%emt 0:00:48]} 7. Be3 {[%emt 0:00:22]} d6 {[%emt 0:00:21]} 8. O-O {[%emt 0:00:08]} O-O {[%emt 0:00:05]} 9. Qd2 {[%emt 0:00:13]} Rb8 {[%emt 0:00:59]} 10. Bh6 {[%emt 0:00:16]} b5 {[%emt 0:00:52]} 11. h3 {[%emt 0:00:54]} b4 {[%emt 0:01:21]} 12. Na4 {[%emt 0:01:25]} Ba6 {[%emt 0:12:16]} 13. b3 {[%emt 0:01:02]} Bxa1 {[%emt 0:04:58]} 14. Rxa1 {[%emt 0:06:53]} Re8 {[%emt 0:06:36]} 15. g4 {[%emt 0:01:24]} Kh8 {[%emt 0:10:44]} 16. Bg5 {[%emt 0:04:55]} Kg8 {[%emt 0:08:59]} 17. Bf6 {[%emt 0:04:47]} Bb5 {[%emt 0:05:07]} 18. Ng3 {[%emt 0:01:58]} Nd4 {[%emt 0:09:57]} 19. Nh5 {[%emt 0:02:48]} e5 {[%emt 0:08:53]} 20. Qh6 {[%emt 0:00:53]} Ne6 21. Ng7 {[%emt 0:14:58]} Nf5 {[%emt 0:08:53]} 22. exf5 {[%emt 0:01:21]} Qxf6 {[%emt 0:01:06]} 23. Nxe8 {[%emt 0:03:27]} Rxe8 {[%emt 0:00:33]} 24. fxe6 {[%emt 0:00:45]} Rxe6 {[%emt 0:00:22]} 25. Bd5 {[%emt 0:03:21]} Re8 {[%emt 0:00:32]} 26. Re1 {[%emt 0:01:57]} Bxa4 {[%emt 0:00:25]} 27. bxa4 {[%emt 0:00:16]} Qd8 {[%emt 0:00:34]} 28. Re3 {[%emt 0:03:19]} Qa5 {[%emt 0:01:46]} 29. Rf3 {[%emt 0:01:05]} Rf8 {[%emt 0:01:18]} 30. Bb3 {[%emt 0:05:35]} Qc7 {[%emt 0:00:35]} 31. h4 {[%emt 0:01:21]} d5 {[%emt 0:04:33]} 32. Bxd5 {[%emt 0:05:48]} Qd7 {[%emt 0:00:07]} 33. Bb3 {[%emt 0:00:48]} Qxg4+ {[%emt 0:00:06]} 34. Rg3 {[%emt 0:00:27]} Qd1+ {[%emt 0:01:24]} 35. Kg2 {[%emt 0:00:19]} Kh8 {[%emt 0:01:15]} 36. Qxf8# 1-0

[Event "GER-chT Youth Countries 2018"]
[Site "Wurzburg"]
[Date "2018.10.05"]
[Round "5"]
[White "Bako, Evelin"]
[Black "Praus, Pia-Rosa"]
[Result "0-1"]
[ECO "A41"]
[WhiteElo "1002"]
[BlackElo "1150"]
[Annotator "NA RC"]
[PlyCount "76"]
[EventDate "2018.10.03"]
[EventType "team-tourn"]
[EventCountry "GER"]
[SourceTitle "playchess.com"]
[Source "ChessBase"]
[SourceQuality "1"]
[TimeControl "40/5400+30:1800+30"]

1. d4 {[%emt 0:00:00]} d6 {[%emt 0:00:00]} 2. Nf3 {[%emt 0:00:00]} g6 {[%emt 0:00:24]} 3. e3 {[%emt 0:01:18]} Bg7 {[%emt 0:00:23]} 4. Bd3 {[%emt 0:00:32]} Nf6 {[%emt 0:00:24]} 5. O-O {[%emt 0:00:58]} O-O {[%emt 0:00:20]} 6. Nbd2 {[%emt 0:04:24]} Nbd7 {[%emt 0:00:35]} 7. b3 {[%emt 0:01:05]} c5 8. Bb2 {[%emt 0:03:42]} a6 {[%emt 0:12:40]} 9. Re1 {[%emt 0:10:14]} b5 {[%emt 0:02:56]} 10. a3 {[%emt 0:03:57]} Qc7 {[%emt 0:01:38]} 11. c4 {[%emt 0:01:43]} Rb8 {[%emt 0:06:21]} 12. a4 {[%emt 0:04:45]} b4 {[%emt 0:01:39]} 13. d5 {[%emt 0:08:53]} a5 {[%emt 0:01:47]} 14. Ne4 {[%emt 0:02:47]} Nxe4 {[%emt 0:00:58]} 15. Bxg7 {[%emt 0:01:30]} Kxg7 {[%emt 0:01:11]} 16. Bxe4 {[%emt 0:00:36]} Nf6 {[%emt 0:00:46]} 17. Bc2 {[%emt 0:01:15]} e6 {[%emt 0:05:42]} 18. e4 {[%emt 0:02:08]} e5 {[%emt 0:00:37]} 19. h3 {[%emt 0:03:07]} Nh5 {[%emt 0:04:14]} 20. Kh2 f5 21. Qe2 {[%emt 0:13:41]} f4 {[%emt 0:04:57]} 22. Rad1 {[%emt 0:13:13]} Qe7 23. Qd3 g5 {[%emt 0:04:18]} 24. g4 {[%emt 0:03:55]} fxg3+ 25. fxg3 g4 {[%emt 0:03:38]} 26. Nd2 {[%emt 0:02:02]} gxh3 {[%emt 0:03:10]} 27. Re2 {[%emt 0:02:55]} Bg4 {[%emt 0:00:08]} 28. Rde1 {[%emt 0:01:15]} Bxe2 {[%emt 0:00:36]} 29. Rxe2 {[%emt 0:00:23]} Rf7 {[%emt 0:00:30]} 30. Nf3 {[%emt 0:01:23]} Qf6 {[%emt 0:00:38]} 31. Nh4 {[%emt 0:02:29]} Rbf8 {[%emt 0:00:44]} 32. Nf5+ {[%emt 0:01:34]} Kh8 {[%emt 0:01:00]} 33. Bd1 {[%emt 0:02:08]} Ng7 {[%emt 0:00:14]} 34. g4 {[%emt 0:00:44]} Nxf5 {[%emt 0:00:41]} 35. gxf5 {[%emt 0:00:41]} Rg7 {[%emt 0:00:40]} 36. Rf2 {[%emt 0:00:57]} Qh4 {[%emt 0:00:22]} 37. Qe3 {[%emt 0:00:49]} Rf6 {[%emt 0:01:52]} 38. Bf3 {[%emt 0:00:36]} Qg3+ {[%emt 0:00:12]} 0-1

[Event "GER-chT Youth Countries 2018"]
[Site "Wurzburg"]
[Date "2018.10.06"]
[Round "6"]
[White "Gschnitzer, Adrian"]
[Black "Ewert, Hannes"]
[Result "1-0"]
[ECO "B38"]
[WhiteElo "2363"]
[BlackElo "2314"]
[Annotator "NA RC"]
[PlyCount "95"]
[EventDate "2018.10.03"]
[EventType "team-tourn"]
[EventCountry "GER"]
[SourceTitle "playchess.com"]
[Source "ChessBase"]
[SourceQuality "1"]
[TimeControl "40/5400+30:1800+30"]

{[%evp 14,93,60,46,59,52,61,56,69,61,55,44,58,57,42,50,70,63,53,46,55,48,83,100,101,92,79,102,91,100,87,131,70,108,90,101,104,60,58,58,84,84,129,123,144,65,70,62,67,53,63,37,54,49,59,32,59,80,10,22,66,24,8,6,7,0,0,0,98,110,98,89,189,209,343,381,385,363,360,301,29981,29982]} 1. c4 {[%emt 0:00:00]} c5 {[%emt 0:00:00]} 2. Nf3 {[%emt 0:00:00]} g6 {[%emt 0:01:06]} 3. d4 {[%emt 0:00:29]} cxd4 {[%emt 0:01:15]} 4. Nxd4 {[%emt 0:00:08]} Bg7 {[%emt 0:00:16]} 5. e4 {[%emt 0:00:20]} Nc6 {[%emt 0:00:39]} 6. Be3 {[%emt 0:00:16]} Nf6 {[%emt 0:01:06]} 7. Nc3 {[%emt 0:00:10]} d6 {[%emt 0:00:55]} 8. Be2 {[%emt 0:00:57]} Bd7 {[%emt 0:01:30]} 9. O-O {[%emt 0:00:26]} Nxd4 {[%emt 0:00:44] B38: Sicilian: Maroczy Bind with 5...Bg7 and 7...0-0} (9... O-O 10. f3 Qb6 11. Na4 Qa5 12. Nb5 Rfc8 13. Rc1 Ne5 14. b3 Be8 15. Qe1 Qxe1 16. Rfxe1 Nc6 17. Red1 Nd7 18. f4 b6 19. Bg4 h5 {0-1 (66) Neiksans,A (2582)-Kovalenko,I (2635) Tallinn 2018}) 10. Bxd4 {[%emt 0:00:11]} Bc6 {[%emt 0:00:06] LiveBook: 5 Games} 11. Qc2 {[%emt 0:01:06]} a5 {[%emt 0:03:01]} 12. Rad1 {[%emt 0:02:07]} Qc7 {[%emt 0:02:48]} 13. Nd5 $146 {[%emt 0:07:20]} ({Predecessor:} 13. Rfe1 O-O 14. h4 a4 15. h5 Nd7 16. Bxg7 Kxg7 17. Nd5 Bxd5 18. Rxd5 {1-0 (40) Ivanov,I (2430)-Zurowski,H (2215) Quebec 1981}) 13... Bxd5 $1 {[%emt 0:00:22]} 14. exd5 {[%emt 0:00:09]} O-O {[%emt 0:00:43]} 15. b3 {[%emt 0:02:08]} b5 {[%emt 0:05:03]} 16. c5 {[%emt 0:02:42]} dxc5 {[%emt 0:17:58]} 17. Qxc5 {[%emt 0:01:14]} Qxc5 {[%emt 0:25:24]} 18. Bxc5 {[%emt 0:00:29]} Rfd8 {[%emt 0:00:11]} 19. Bf3 {[%emt 0:07:15]} Re8 {[%emt 0:01:45]} 20. Rfe1 {[%emt 0:07:02]} Bf8 {[%emt 0:02:41]} 21. d6 {[%emt 0:05:50]} Rac8 {[%emt 0:00:59]} 22. Bd4 {[%emt 0:00:31]} ({Reject} 22. dxe7 $6 Rxc5 23. exf8=R+ Kxf8 $11) 22... Nd7 {[%emt 0:02:00]} 23. Bb7 {[%emt 0:00:57]} Rcd8 {[%emt 0:03:55]} 24. Bc6 {[%emt 0:04:20]} e5 {[%emt 0:10:43]} 25. Bxd7 {[%emt 0:02:24]} ({Don't play} 25. Bxb5 $6 exd4 26. Rxe8 Rxe8 $11) 25... Rxd7 {[%emt 0:00:07]} 26. Bxe5 {[%emt 0:04:37]} Bxd6 {[%emt 0:08:33] [#]} 27. Kf1 $1 {[%emt 0:00:40]} Bb4 {[%emt 0:00:34]} 28. Rxd7 {[%emt 0:00:08]} Bxe1 {[%emt 0:00:05]} 29. f4 {[%emt 0:00:58]} ({Of course not} 29. Kxe1 $6 Rxe5+ 30. Kd2 Kg7 $11) (29. Rd5 $16) 29... Bh4 {[%emt 0:04:04]} 30. g3 {[%emt 0:08:04]} Bd8 {[%emt 0:01:25]} 31. Rb7 {[%emt 0:01:58]} b4 {[%emt 0:02:42]} 32. Rb8 {[%emt 0:02:24]} Kf8 {[%emt 0:00:57]} 33. Ra8 {[%emt 0:04:28]} Ke7 {[%emt 0:00:50]} 34. Ke2 {[%emt 0:03:09]} f6 {[%emt 0:00:54]} 35. Bd4 {[%emt 0:00:22]} Kd7+ {[%emt 0:00:19]} 36. Kd3 {[%emt 0:00:26]} Re6 {[%emt 0:00:11]} 37. g4 {[%emt 0:02:13]} Re1 {[%emt 0:01:58]} 38. f5 {[%emt 0:04:50]} gxf5 {[%emt 0:00:04]} 39. gxf5 {[%emt 0:00:07]} Rf1 {[%emt 0:00:31]} 40. Ke4 {[%emt 0:00:52]} Bc7 {[%emt 0:00:34]} (40... h5 $11 {keeps the balance.}) 41. Ra7 {[%emt 0:35:48]} Kc8 {[%emt 0:08:47] [#]} 42. Ra6 $1 {[%emt 0:00:00]} ({Doch nicht} 42. Bxf6 Rf4+ 43. Kd3 Rxf5 $15) 42... Rf4+ {[%emt 0:10:26] [#]} (42... Bxh2 $16 43. Rxf6 (43. Bxf6 Rf4+ 44. Ke5 Rf2+ 45. Ke6 Re2+ 46. Kd5 Rf2 $16) (43. Rxa5 Bc7 $14) 43... h5) 43. Kd5 $1 {[%emt 0:00:00]} Rxf5+ {[%emt 0:09:17] [#]} (43... Kd7 $142) 44. Kc6 $1 {[%emt 0:00:00]} Kb8 {[%emt 0:00:07]} 45. Ra7 {[%emt 0:00:00]} Be5 {[%emt 0:01:18]} 46. Rxa5 {[%emt 0:00:00]} Rh5 $2 {[%emt 0:02:00]} (46... Rf1 $18) 47. Rd5 {[%emt 0:00:00]} Kc8 {[%emt 0:01:03]} 48. Bb6 {[%emt 0:00:00]} 1-0

[Event "GER-chT Youth Countries 2018"]
[Site "Wurzburg"]
[Date "2018.10.06"]
[Round "6"]
[White "Pfreundt, Jakob"]
[Black "Degenhard, Simon"]
[Result "1/2-1/2"]
[ECO "D41"]
[WhiteElo "2358"]
[BlackElo "2207"]
[Annotator "NA"]
[PlyCount "109"]
[EventDate "2018.10.03"]
[EventType "team-tourn"]
[EventCountry "GER"]
[SourceTitle "playchess.com"]
[Source "ChessBase"]
[SourceQuality "1"]
[TimeControl "40/5400+30:1800+30"]

{[%evp 26,86,24,18,21,2,42,35,37,29,54,31,57,56,72,24,66,70,69,84,81,64,62,55,54,43,78,69,110,114,333,360,403,129,121,135,502,611,570,409,453,212,227,0,517,468,552,413,1207,1045,1015,32767,32767,502,1012,945,1475,1427,1489,249,268,249,176]} 1. d4 {[%emt 0:00:00] Aronian,L} Nf6 {[%emt 0:00:00]} 2. Nf3 {[%emt 0:00:00]} e6 {[%emt 0:00:00]} 3. c4 {[%emt 0:00:03]} d5 {[%emt 0:00:02]} 4. Nc3 {[%emt 0:00:14]} c5 {[%emt 0:00:10]} 5. cxd5 {[%emt 0:00:28]} Nxd5 {[%emt 0:00:11]} 6. e4 {[%emt 0:00:14]} Nxc3 {[%emt 0:00:10]} 7. bxc3 {[%emt 0:00:03]} cxd4 {[%emt 0:00:12]} 8. cxd4 {[%emt 0:00:07]} Bb4+ {[%emt 0:00:08]} 9. Bd2 {[%emt 0:00:06]} Bxd2+ {[%emt 0:00:06]} 10. Qxd2 {[%emt 0:00:06]} O-O {[%emt 0:01:12]} 11. Rc1 {[%emt 0:00:33]} b6 {[%emt 0:01:01] D41: Queen's Gambit Declined: Semi-Tarrasch with 5 cxd5} 12. Bd3 {[%emt 0:00:43]} Bb7 {[%emt 0:00:37]} 13. O-O {[%emt 0:00:17]} Nd7 {[%emt 0:00:18] LiveBook: 65 Games} 14. Qe3 {[%emt 0:00:27]} Rc8 {[%emt 0:02:33]} 15. e5 {[%emt 0:05:31] [#]} Qe7 $146 {[%emt 0:07:32]} ({Predecessor:} 15... Bxf3 16. Qxf3 Qh4 17. Qe3 Rfd8 18. f4 Nf8 19. Rxc8 Rxc8 {1-0 (52) Aronian,L (2809)-Kramnik,V (2801) Paris/St Petersburg 2013 CBM 154 [Aronian,L]}) 16. Ng5 {[%emt 0:10:53]} g6 {[%emt 0:12:47]} 17. Be4 {[%emt 0:23:07]} Ba6 {[%emt 0:14:39]} 18. Rfd1 {[%emt 0:00:08]} f5 {[%emt 0:11:52]} 19. exf6 $1 {[%emt 0:00:39]} Nxf6 {[%emt 0:00:32]} 20. Bf3 {[%emt 0:11:15]} Rxc1 {[%emt 0:05:02]} 21. Rxc1 {[%emt 0:00:24]} Rc8 {[%emt 0:00:22]} 22. Rxc8+ {[%emt 0:05:56]} Bxc8 {[%emt 0:00:26]} 23. h4 {[%emt 0:02:41]} Qd6 {[%emt 0:07:37]} 24. h5 {[%emt 0:07:36]} gxh5 {[%emt 0:04:05]} 25. Nh3 {[%emt 0:05:13]} Qc7 {[%emt 0:04:21]} (25... Ng4 $11 26. Qg5+ Kf8) 26. Nf4 {[%emt 0:02:59]} Qf7 {[%emt 0:00:40]} (26... Ng4 $14 27. Bxg4 hxg4) 27. Qe5 {[%emt 0:01:25]} h6 $2 {[%emt 0:09:32] [#]} (27... Qg7 $16 {is a better defense.} 28. Qb8 (28. Nxe6 Bxe6 29. Qxe6+ Qf7 $16) 28... Qd7 29. Nxh5 (29. Bxh5 Qc6 $16) 29... Nxh5) 28. d5 $1 {[%emt 0:07:56]} exd5 {[%emt 0:08:18]} 29. Nxh5 $2 {[%emt 0:00:14]} (29. Nxd5 $18 {is the precise move to win.} Nd7 30. Qd6) 29... Ne4 {[%emt 0:01:18]} 30. Nf4 {[%emt 0:06:07]} Bb7 $2 {[%emt 0:02:16]} (30... Qf5 $16 31. Qb8 (31. Qxd5+ Qxd5 32. Nxd5 Nd6 $11) (31. Qe8+ Qf8 $16) 31... Nf6) 31. Bh5 {[%emt 0:01:40]} Qf8 {[%emt 0:03:38]} 32. Qe6+ $2 {[%emt 0:04:31]} (32. Bg4) 32... Kg7 $1 {[%emt 0:00:01]} 33. Qd7+ {[%emt 0:01:26]} Kg8 {[%emt 0:00:01]} 34. Qe6+ {[%emt 0:00:24]} ({Resist} 34. Qxb7 $6 Qxf4 35. Qxd5+ Kg7 $16) ({White should try} 34. Qc7 $18 Bc8 35. Bg6) 34... Kg7 {[%emt 0:00:06]} 35. Qg4+ {[%emt 0:00:57]} Kf6 {[%emt 0:01:21]} 36. Ne6 {[%emt 0:02:09]} Qb8 {[%emt 0:03:41]} (36... Qh8 $142 37. f3 Bc8) 37. Qg6+ {[%emt 0:00:56]} Ke5 {[%emt 0:00:26]} 38. f4+ {[%emt 0:00:32]} Kd6 {[%emt 0:00:06] [#]} 39. Qg7 $1 {[%emt 0:00:56]} ({Not} 39. Nf8+ Kc7 $18) 39... Qc8 {[%emt 0:01:21]} 40. Qe5+ {[%emt 0:00:15]} Kc6 {[%emt 0:00:48]} 41. Bg4 {[%emt 0:06:12]} Qg8 {[%emt 0:05:17]} 42. a4 $2 {[%emt 0:18:36]} (42. Qc7+ Kb5 43. Qxb7 Qxg4 44. Qxd5+ Nc5 45. Nc7+ Kb4 46. Qd4+ Ka3 47. Nd5) 42... Nd6 {[%emt 0:03:43]} 43. Bf3 {[%emt 0:00:46]} Kd7 $18 {[%emt 0:01:57]} 44. Nd4 {[%emt 0:01:17]} a6 {[%emt 0:08:12]} 45. Qf6 {[%emt 0:01:57]} Bc6 {[%emt 0:02:46]} 46. Qxh6 {[%emt 0:02:19]} Bxa4 {[%emt 0:00:36]} 47. f5 {[%emt 0:01:22]} Qe8 {[%emt 0:02:40]} 48. Qf4 {[%emt 0:00:08]} Qe1+ {[%emt 0:03:17]} 49. Kh2 {[%emt 0:00:00]} Nf7 {[%emt 0:02:21]} 50. Be2 {[%emt 0:00:58]} Bd1 {[%emt 0:01:08]} 51. Bxa6 {[%emt 0:01:27]} Ne5 {[%emt 0:01:08]} 52. Bb5+ {[%emt 0:00:01]} Kc8 {[%emt 0:00:20]} 53. Ba6+ {[%emt 0:00:09]} Kd7 {[%emt 0:00:07]} 54. Bb5+ {[%emt 0:00:02]} Kc8 {[%emt 0:00:02]} 55. Ba6+ {[%emt 0:02:24]} 1/2-1/2